bitfinex/quotes_BTCUSD_20250530
["timestamp","ask_amount","ask_price","bid_price","bid_amount"]
[1748563201343,0.1268996,105600.0,105560.0,0.1251441]
[1748563201556,0.11789839,105600.0,105560.0,0.0915441]
[1748563201773,0.00254229,105590.0,105560.0,0.0925441]
[1748563201990,0.01813544,105590.0,105560.0,0.0925441]
[1748563202468,0.02938633,105590.0,105560.0,0.1232441]
[1748563202697,0.01,105570.0,105560.0,0.1232441]
[1748563203125,0.01,105570.0,105560.0,0.1242441]
[1748563203343,0.01,105570.0,105560.0,0.1232441]
[1748563203559,0.01,105570.0,105560.0,0.1222441]
[1748563203780,0.01,105570.0,105560.0,0.0925441]
[1748563204237,0.01,105570.0,105560.0,0.0935441]
[1748563204467,0.0402,105570.0,105560.0,0.0935441]
[1748563204915,0.01,105570.0,105560.0,0.0935441]
[1748563205182,0.10868,105570.0,105560.0,0.0935441]
[1748563205420,0.29814408,105570.0,105560.0,0.00249015]
[1748563205643,0.31824408,105570.0,105560.0,0.00249015]
[1748563206092,0.18946408,105570.0,105560.0,0.03339015]
[1748563206369,0.64864965,105590.0,105580.0,0.0616]
[1748563206370,0.00900083,105590.0,105580.0,0.0616]
[1748563206595,0.00900083,105590.0,105580.0,0.40286017]
[1748563206596,0.07841042,105590.0,105580.0,0.40286017]
[1748563206865,0.20835242,105590.0,105580.0,0.15235395]
[1748563207119,0.21835242,105590.0,105580.0,0.15235395]
[1748563207847,0.17935242,105590.0,105580.0,0.12165395]
[1748563208091,0.17935242,105590.0,105580.0,0.12265395]
[1748563208092,0.17835242,105590.0,105580.0,0.12265395]
[1748563208337,0.17835242,105590.0,105580.0,0.12165395]
[1748563209444,0.18328672,105590.0,105580.0,0.12165395]
[1748563209674,0.25890112,105580.0,105570.0,0.0315]
[1748563209909,0.25890112,105580.0,105570.0,0.12255395]
[1748563210852,0.25890112,105580.0,105570.0,0.12455395]
[1748563211059,0.25890112,105580.0,105570.0,0.12655395]
[1748563211290,0.26837234,105580.0,105570.0,0.15665395]
[1748563211987,0.25890112,105580.0,105570.0,0.15665395]
[1748563212427,0.20890112,105580.0,105570.0,0.12655395]
[1748563212865,0.20890112,105580.0,105570.0,0.09505395]
[1748563213539,0.45139507,105580.0,105570.0,0.004]
[1748563214040,0.52735766,105580.0,105570.0,0.004]
[1748563214264,0.54294189,105580.0,105570.0,0.004]
[1748563214480,0.54294189,105580.0,105570.0,0.002]
[1748563214699,0.52735766,105580.0,105570.0,0.002]
[1748563214921,0.54294023,105580.0,105570.0,0.001]
[1748563215143,0.22911995,105570.0,105560.0,0.00049015]
[1748563215392,0.53583995,105570.0,105560.0,0.00049015]
[1748563215847,0.22911995,105570.0,105560.0,0.00049015]
[1748563216068,0.22911995,105570.0,105560.0,0.1229441]
[1748563216069,0.26839206,105570.0,105560.0,0.1229441]
[1748563216289,0.21839224,105570.0,105560.0,0.15531216]
[1748563216519,0.21839224,105570.0,105560.0,0.1529441]
[1748563217005,0.22039224,105570.0,105560.0,0.1529441]
[1748563217222,0.21092004,105570.0,105560.0,0.1529441]
[1748563217435,0.21092004,105570.0,105560.0,0.1229441]
[1748563218582,0.21092004,105570.0,105560.0,0.1545441]
[1748563221403,0.21092004,105570.0,105560.0,0.1229441]
[1748563223311,0.21092004,105570.0,105560.0,0.0915441]
[1748563223554,0.21092004,105570.0,105560.0,0.1104841]
[1748563224009,0.07147202,105570.0,105560.0,0.1755841]
[1748563224263,0.03941606,105570.0,105560.0,0.1755841]
[1748563224484,0.03941588,105570.0,105560.0,0.1755841]
[1748563224702,0.04988826,105570.0,105560.0,0.1865841]
[1748563224927,0.052,105570.0,105560.0,0.38552299]
[1748563225140,0.001,105570.0,105560.0,0.40446856]
[1748563225360,0.06047158,105570.0,105560.0,0.40446856]
[1748563225618,0.02994333,105570.0,105560.0,0.4139413]
[1748563225851,0.02994333,105570.0,105560.0,0.41724078]
[1748563226089,0.02994333,105570.0,105560.0,0.18988358]
[1748563226090,0.23833468,105570.0,105560.0,0.18988358]
[1748563226322,0.21839197,105570.0,105560.0,0.1214841]
[1748563226544,0.21839197,105570.0,105560.0,0.1324841]
[1748563226545,0.21939197,105570.0,105560.0,0.1324841]
[1748563227227,0.20991995,105570.0,105560.0,0.1324841]
[1748563228818,0.35685571,105570.0,105560.0,0.1952841]
[1748563229036,0.33638413,105570.0,105560.0,0.20475729]
[1748563229249,0.54630346,105570.0,105560.0,0.1952841]
[1748563229508,0.52583188,105570.0,105560.0,0.1952841]
[1748563230175,0.02994413,105570.0,105560.0,0.3847498]
[1748563230394,0.23140655,105570.0,105560.0,0.1952841]
[1748563230612,0.22886426,105570.0,105560.0,0.1952841]
[1748563230884,0.53526426,105570.0,105560.0,0.1952841]
[1748563231091,0.34581562,105570.0,105560.0,0.20475738]
[1748563231306,0.56520777,105570.0,105560.0,0.1952841]
[1748563231524,0.54473619,105570.0,105560.0,0.1952841]
[1748563231736,0.35681535,105570.0,105560.0,0.3847498]
[1748563231956,0.56520759,105570.0,105560.0,0.1952841]
[1748563232187,0.53526426,105570.0,105560.0,0.1952841]
[1748563232407,0.53526426,105570.0,105560.0,0.1635841]
[1748563232628,0.55829224,105570.0,105560.0,0.1324841]
[1748563232844,0.52579224,105570.0,105560.0,0.1324841]
[1748563233533,0.48579224,105570.0,105560.0,0.1324841]
[1748563236066,0.47632013,105570.0,105560.0,0.1324841]
[1748563236727,0.01894395,105570.0,105560.0,0.1324841]
[1748563236952,0.52668637,105570.0,105560.0,0.1639841]
[1748563237246,0.52414408,105570.0,105560.0,0.1958841]
[1748563239228,0.52414408,105570.0,105560.0,0.1639841]
[1748563239229,0.2178639,105570.0,105560.0,0.1639841]
[1748563239442,0.5241039,105570.0,105560.0,0.1639841]
[1748563239664,0.5241039,105570.0,105560.0,0.1968841]
[1748563239883,0.33465615,105570.0,105560.0,0.20023401]
[1748563240105,0.34412844,105570.0,105560.0,0.20023401]
[1748563240327,0.53357619,105570.0,105560.0,0.20023401]
[1748563240552,0.52410435,105570.0,105560.0,0.1639841]
[1748563240775,0.51463224,105570.0,105560.0,0.1639841]
[1748563241037,0.51463224,105570.0,105560.0,0.1324841]
[1748563241267,0.20839224,105570.0,105560.0,0.1324841]
[1748563241488,0.51459224,105570.0,105560.0,0.13583401]
[1748563241706,0.51459224,105570.0,105560.0,0.1324841]
[1748563241928,0.54559224,105570.0,105560.0,0.1324841]
[1748563242198,0.53612004,105570.0,105560.0,0.1324841]
[1748563242667,0.56722004,105570.0,105560.0,0.04143015]
[1748563242889,0.26102004,105570.0,105560.0,0.04143015]
[1748563243146,0.22093165,105580.0,105560.0,0.1647841]
[1748563243384,0.19985242,105590.0,105560.0,0.3923422]
[1748563243822,0.3440438,105580.0,105570.0,0.37943462]
[1748563243848,0.11726055,105590.0,105570.0,0.39837839]
[1748563244067,0.31563077,105580.0,105570.0,0.36166877]
[1748563244292,0.32510145,105580.0,105570.0,0.37114061]
[1748563244520,0.32510145,105580.0,105570.0,0.41351236]
[1748563244754,0.72837403,105600.0,105590.0,0.02391059]
[1748563244755,0.10778933,105600.0,105590.0,0.02391059]
[1748563245003,0.61281277,105600.0,105590.0,0.05487073]
[1748563245460,0.51449277,105600.0,105590.0,0.05487073]
[1748563245692,0.49551393,105600.0,105590.0,0.05487073]
[1748563245927,0.18939393,105600.0,105590.0,0.05487073]
[1748563246161,0.49551393,105600.0,105590.0,0.05487073]
[1748563246606,0.19039393,105600.0,105590.0,0.06187073]
[1748563246829,0.49751393,105600.0,105590.0,0.06887073]
[1748563247280,0.49747393,105600.0,105590.0,0.06887073]
[1748563248411,0.19139393,105600.0,105590.0,0.06887073]
[1748563248633,0.49743393,105600.0,105590.0,0.06887073]
[1748563249112,0.52793393,105600.0,105590.0,0.03597073]
[1748563250052,0.52793393,105600.0,105590.0,0.01703073]
[1748563250283,0.52793393,105600.0,105590.0,0.01703012]
[1748563250508,0.52620379,105600.0,105590.0,0.01703012]
[1748563251186,0.49570379,105600.0,105590.0,0.01703012]
[1748563252793,0.49570379,105600.0,105590.0,0.014]
[1748563253040,0.49570379,105600.0,105590.0,0.01703003]
[1748563253708,0.49558379,105600.0,105590.0,0.01703003]
[1748563254833,0.49558379,105600.0,105590.0,0.05023003]
[1748563254834,0.18966379,105600.0,105590.0,0.05023003]
[1748563255050,0.49558379,105600.0,105590.0,0.05023003]
[1748563257564,0.49558379,105600.0,105590.0,0.36626334]
[1748563257565,0.002,105600.0,105590.0,0.36626334]
[1748563257786,0.002,105600.0,105590.0,0.72618491]
[1748563257787,0.3267783,105600.0,105590.0,0.72618491]
[1748563258012,0.33624781,105600.0,105590.0,0.72618491]
[1748563258260,0.3267783,105600.0,105590.0,0.72618473]
[1748563258491,0.34571723,105600.0,105590.0,0.7167145]
[1748563258708,0.03040745,105600.0,105590.0,0.72618482]
[1748563258935,0.33624736,105600.0,105590.0,0.72618482]
[1748563259197,0.34571687,105600.0,105590.0,0.72618491]
[1748563259641,0.33624736,105600.0,105590.0,0.74512546]
[1748563259857,0.33624736,105600.0,105590.0,0.72618491]
[1748563260295,0.33624736,105600.0,105590.0,0.73565514]
[1748563260296,0.31730888,105600.0,105590.0,0.73565514]
[1748563260545,0.33624745,105600.0,105590.0,0.7167145]
[1748563260776,0.33624745,105600.0,105590.0,0.72618491]
[1748563261212,0.33624745,105600.0,105590.0,0.7167145]
[1748563261431,0.33624745,105600.0,105590.0,0.72618491]
[1748563261658,0.33624745,105600.0,105590.0,0.72618218]
[1748563261659,0.35671903,105600.0,105590.0,0.72618218]
[1748563261909,0.32677803,105600.0,105590.0,0.73565232]
[1748563262135,0.33616736,105600.0,105590.0,0.72618218]
[1748563262357,0.33616736,105600.0,105590.0,0.74512273]
[1748563262582,0.32669803,105600.0,105590.0,0.72618218]
[1748563262798,0.34716961,105600.0,105590.0,0.7356525]
[1748563263015,0.32669803,105600.0,105590.0,0.74512273]
[1748563263264,0.33616736,105600.0,105590.0,0.72618218]
[1748563263521,0.03040736,105600.0,105590.0,0.7356525]
[1748563263739,0.02093803,105600.0,105590.0,0.40512264]
[1748563263956,0.04140961,105600.0,105590.0,0.40512264]
[1748563264177,0.32665803,105600.0,105590.0,0.40512264]
[1748563264405,0.33612727,105600.0,105590.0,0.41459287]
[1748563264610,0.03040727,105600.0,105590.0,0.40512273]
[1748563265043,0.03040727,105600.0,105590.0,0.41459287]
[1748563265265,0.33608727,105600.0,105590.0,0.40512273]
[1748563265485,0.34555714,105600.0,105590.0,0.1778294]
[1748563265756,0.33608745,105600.0,105590.0,0.36724127]
[1748563266000,0.33608745,105600.0,105590.0,0.17782858]
[1748563266001,0.53495098,105600.0,105590.0,0.17782858]
[1748563266221,0.36602863,105600.0,105590.0,0.17782858]
[1748563266441,0.34555705,105600.0,105590.0,0.18729917]
[1748563266667,0.34555705,105600.0,105590.0,0.17782858]
[1748563266888,0.52548138,105600.0,105590.0,0.17782858]
[1748563267112,0.54442058,105600.0,105590.0,0.17782858]
[1748563267353,0.35502656,105600.0,105590.0,0.17782858]
[1748563267580,0.53495161,105600.0,105590.0,0.14462858]
[1748563267810,0.54801304,105600.0,105590.0,0.01702964]
[1748563268036,0.57861304,105600.0,105590.0,0.01702964]
[1748563268276,0.04888461,105580.0,105570.0,0.38548499]
[1748563268504,0.35448443,105580.0,105570.0,0.83548361]
[1748563268947,0.35448443,105580.0,105570.0,1.02493136]
[1748563269168,0.33554226,105580.0,105570.0,1.03440338]
[1748563269384,0.32607158,105580.0,105570.0,1.05781812]
[1748563269631,0.35548434,105580.0,105570.0,1.06093943]
[1748563269864,0.55538627,105580.0,105570.0,0.8389193]
[1748563270081,0.54591478,105580.0,105570.0,0.83444824]
[1748563270298,0.54591478,105580.0,105570.0,0.83084651]
[1748563270513,0.54591478,105580.0,105570.0,0.83531757]
[1748563270729,0.55538627,105580.0,105570.0,0.83531757]
[1748563270951,0.36595646,105580.0,105570.0,0.84478995]
[1748563271195,0.36595637,105580.0,105570.0,0.86412316]
[1748563271445,0.34701321,105580.0,105570.0,1.1980432]
[1748563271679,0.34701321,105580.0,105570.0,1.20417032]
[1748563271913,0.35648443,105580.0,105570.0,1.59804749]
[1748563272144,0.35648443,105580.0,105570.0,1.59088215]
[1748563272591,0.35648443,105580.0,105570.0,1.18753287]
[1748563272817,0.34701321,105580.0,105570.0,1.19700489]
[1748563273049,0.35640434,105580.0,105570.0,1.59700489]
[1748563273274,0.36587556,105580.0,105570.0,1.58753287]
[1748563273520,0.36587556,105580.0,105570.0,1.30119994]
[1748563274194,0.36587556,105580.0,105570.0,1.09280752]
[1748563274418,0.36587556,105580.0,105570.0,1.10227981]
[1748563274644,0.55530537,105580.0,105570.0,1.09280752]
[1748563274868,0.53636374,105580.0,105570.0,0.22116004]
[1748563275106,0.51589216,105580.0,105570.0,0.22116004]
[1748563275330,0.51589216,105580.0,105570.0,0.21668898]
[1748563275782,0.52536365,105580.0,105570.0,0.21668898]
[1748563276018,0.33593384,105580.0,105570.0,0.22616136]
[1748563276288,0.51589261,105580.0,105570.0,0.21668898]
[1748563276746,0.51589261,105580.0,105570.0,0.52368898]
[1748563278115,0.51589261,105580.0,105570.0,0.52033646]
[1748563278346,0.54789261,105580.0,105570.0,0.52368798]
[1748563278583,0.51589261,105580.0,105570.0,0.52368798]
[1748563279081,0.30744,105580.0,105570.0,0.79915128]
[1748563279330,0.30744,105580.0,105570.0,0.80862276]
[1748563279331,0.002,105580.0,105570.0,0.80862276]
[1748563279558,0.002,105580.0,105570.0,1.92904624]
[1748563279784,0.002,105580.0,105570.0,4.10838403]
[1748563280066,0.002,105580.0,105570.0,4.20634403]
[1748563280298,0.002,105580.0,105570.0,4.20937373]
[1748563280985,0.002,105580.0,105570.0,3.13515973]
[1748563281219,0.002,105580.0,105570.0,2.90074373]
[1748563281907,0.32929728,105620.0,105570.0,2.90074373]
[1748563281908,0.00946548,105640.0,105630.0,0.53879906]
[1748563282144,0.19884565,105650.0,105640.0,0.53878824]
[1748563282145,0.00946458,105650.0,105640.0,0.53878824]
[1748563282374,0.02,105660.0,105650.0,0.0323]
[1748563282674,0.02,105660.0,105650.0,0.48404546]
[1748563282909,0.02,105660.0,105650.0,0.4926061]
[1748563282910,0.04047158,105660.0,105650.0,0.4926061]
[1748563283138,0.02,105660.0,105650.0,0.59456973]
[1748563283378,0.02,105660.0,105650.0,0.59470994]
[1748563284085,0.02,105660.0,105650.0,0.62515204]
[1748563284313,0.021,105660.0,105650.0,0.61885104]
[1748563284540,0.021,105660.0,105650.0,0.75621804]
[1748563284768,0.021,105660.0,105650.0,0.75921804]
[1748563284989,0.021,105660.0,105650.0,0.74027804]
[1748563285672,0.02091268,105660.0,105650.0,0.74027585]
[1748563285898,0.02091268,105660.0,105650.0,1.14027585]
[1748563286124,0.02091268,105660.0,105650.0,1.14047519]
[1748563286356,0.02091268,105660.0,105650.0,1.1438033]
[1748563286630,0.01333732,105660.0,105650.0,4.47957104]
[1748563286850,0.73600646,105720.0,105680.0,0.04116225]
[1748563286851,0.02047158,105690.0,105680.0,0.04116225]
[1748563287073,0.22210333,105720.0,105690.0,0.34]
[1748563287074,0.52283534,105700.0,105690.0,0.34]
[1748563287297,0.51337576,105700.0,105690.0,0.43408146]
[1748563287521,0.5039153,105700.0,105690.0,0.43408146]
[1748563288461,0.50440806,105700.0,105690.0,0.43408146]
[1748563289185,0.19916806,105700.0,105690.0,0.43408146]
[1748563289401,0.50928806,105700.0,105690.0,0.45329812]
[1748563289621,0.50928806,105700.0,105690.0,0.45329748]
[1748563289844,0.50928806,105700.0,105690.0,0.45345018]
[1748563290077,0.33108434,105700.0,105690.0,1.82854565]
[1748563290300,0.02596434,105700.0,105690.0,1.42412765]
[1748563290535,0.33104434,105700.0,105690.0,1.22310682]
[1748563290750,0.02596434,105700.0,105690.0,1.232568]
[1748563290973,0.03387335,105700.0,105690.0,1.21364555]
[1748563291194,0.35638493,105700.0,105690.0,1.04053584]
[1748563291418,0.35438493,105700.0,105690.0,1.44999738]
[1748563291657,0.55306032,105700.0,105690.0,1.25130318]
[1748563291891,0.55306032,105700.0,105690.0,0.85345018]
[1748563291892,0.51366861,105700.0,105690.0,0.85345018]
[1748563292117,0.20862861,105700.0,105690.0,0.45345018]
[1748563292343,0.50416815,105700.0,105690.0,0.45345018]
[1748563293687,0.01941377,105700.0,105690.0,0.45988494]
[1748563293920,0.01941289,105700.0,105690.0,0.68424448]
[1748563294137,0.01941289,105700.0,105690.0,0.70316729]
[1748563294138,0.04934484,105700.0,105690.0,0.70316729]
[1748563294364,0.01941289,105700.0,105690.0,0.69370593]
[1748563294588,0.03988447,105700.0,105690.0,0.69370602]
[1748563295018,0.03988447,105700.0,105690.0,0.71262829]
[1748563295241,0.01941289,105700.0,105690.0,0.71262856]
[1748563295530,0.2180881,105700.0,105690.0,0.45345028]
[1748563295758,0.01941342,105700.0,105690.0,0.65214448]
[1748563295977,0.02887326,105700.0,105690.0,0.32160593]
[1748563296200,0.03833381,105700.0,105690.0,0.32160593]
[1748563296422,0.03833381,105700.0,105690.0,0.11345028]
[1748563296423,0.34325452,105700.0,105690.0,0.11345028]
[1748563296650,0.52300907,105700.0,105690.0,0.11345028]
[1748563296875,0.5135487,105700.0,105690.0,0.11345015]
[1748563297096,0.5435487,105700.0,105690.0,0.11345019]
[1748563297334,0.5435487,105700.0,105690.0,0.11042331]
[1748563297797,0.5135487,105700.0,105690.0,0.11042331]
[1748563298036,0.5135487,105700.0,105690.0,0.45042331]
[1748563298267,0.5135487,105700.0,105690.0,0.4534502]
[1748563298532,0.5135487,105700.0,105690.0,0.45042331]
[1748563298972,0.5135487,105700.0,105690.0,0.45345019]
[1748563299437,0.5135487,105700.0,105690.0,0.01936936]
[1748563299438,0.6424087,105700.0,105690.0,0.01936936]
[1748563300138,0.2399287,105700.0,105690.0,0.03831936]
[1748563300372,0.51346835,105700.0,105690.0,0.12937331]
[1748563300824,0.51346835,105700.0,105690.0,0.13240023]
[1748563301514,0.54556835,105700.0,105690.0,0.12937331]
[1748563302456,0.54556835,105700.0,105690.0,0.03831936]
[1748563303445,0.24072835,105700.0,105690.0,0.03831936]
[1748563303669,0.54548835,105700.0,105690.0,0.03831936]
[1748563304359,0.54548835,105700.0,105690.0,0.04134644]
[1748563305519,0.67580835,105700.0,105690.0,0.02595]
[1748563306017,0.67680835,105700.0,105690.0,0.03395]
[1748563308086,0.78880315,105700.0,105690.0,0.03395]
[1748563308360,1.19104315,105700.0,105690.0,0.03395]
[1748563308586,1.19978223,105700.0,105690.0,0.03395]
[1748563308810,1.19978226,105700.0,105690.0,0.03395]
[1748563309034,1.22636315,105700.0,105690.0,0.03395]
[1748563309260,1.53104315,105700.0,105690.0,0.03395]
[1748563309477,0.22929411,105690.0,105680.0,0.01895]
[1748563309702,0.21283266,105690.0,105680.0,0.02197772]
[1748563309950,0.22229411,105690.0,105680.0,0.02197772]
[1748563310176,0.25229411,105690.0,105680.0,0.02197772]
[1748563310400,0.25229411,105690.0,105680.0,0.02532659]
[1748563311123,0.25229411,105690.0,105680.0,0.02197772]
[1748563311343,0.26104638,105690.0,105680.0,0.02532659]
[1748563311800,0.26307607,105690.0,105680.0,0.02532659]
[1748563312012,0.26307608,105690.0,105680.0,0.02532659]
[1748563312240,0.26407608,105690.0,105680.0,0.02532659]
[1748563312949,0.63631608,105690.0,105680.0,0.02533894]
[1748563313210,0.63631896,105690.0,105680.0,0.02977616]
[1748563313440,0.63631899,105690.0,105680.0,0.02533894]
[1748563313879,0.64578033,105690.0,105680.0,0.02533894]
[1748563314555,0.64574005,105690.0,105680.0,0.02533885]
[1748563315067,0.63695547,105690.0,105680.0,0.02533885]
[1748563315296,0.64574004,105690.0,105680.0,0.02533885]
[1748563315750,0.64573963,105690.0,105680.0,0.02533885]
[1748563315979,0.64573952,105690.0,105680.0,0.02533885]
[1748563316212,0.64573954,105690.0,105680.0,0.02533885]
[1748563316439,0.67703954,105690.0,105680.0,0.02533885]
[1748563317795,0.67703807,105690.0,105680.0,0.02533885]
[1748563318015,0.64573807,105690.0,105680.0,0.02533885]
[1748563318457,0.63695547,105690.0,105680.0,0.02533885]
[1748563318742,0.63695547,105690.0,105680.0,0.02533805]
[1748563319711,0.003,105690.0,105680.0,0.146692]
[1748563319934,0.02347158,105690.0,105680.0,0.73306868]
[1748563320175,0.01997206,105700.0,105690.0,0.64126647]
[1748563320398,0.01997206,105700.0,105690.0,1.07717505]
[1748563320630,0.01997206,105700.0,105690.0,1.08020272]
[1748563320851,0.01997206,105700.0,105690.0,0.76828249]
[1748563321068,0.01997206,105700.0,105690.0,0.76233897]
[1748563321572,0.01997206,105700.0,105690.0,0.76433897]
[1748563321800,0.01986583,105700.0,105690.0,0.76633897]
[1748563322259,0.01986583,105700.0,105690.0,0.76733897]
[1748563322497,0.02086583,105700.0,105690.0,0.77433897]
[1748563322719,0.02086583,105700.0,105690.0,0.93002897]
[1748563323374,0.02086583,105700.0,105690.0,0.94887052]
[1748563325210,0.00138653,105700.0,105690.0,4.09519356]
[1748563325483,0.00138653,105700.0,105690.0,4.49519356]
[1748563326429,0.30444,105720.0,105710.0,0.60932529]
[1748563326669,0.32335691,105720.0,105710.0,0.49030661]
[1748563326950,0.31389832,105720.0,105710.0,0.66562287]
[1748563327169,0.31389832,105720.0,105710.0,0.66562296]
[1748563327391,0.32335673,105720.0,105710.0,0.67508253]
[1748563327618,0.32335673,105720.0,105710.0,0.45750661]
[1748563327619,0.34227399,105720.0,105710.0,0.45750661]
[1748563327840,0.53145295,105720.0,105710.0,0.45950661]
[1748563328081,0.03783461,105720.0,105710.0,0.46150661]
[1748563328301,0.53395586,105720.0,105710.0,0.46486165]
[1748563328532,0.53141357,105720.0,105710.0,0.46486165]
[1748563328756,0.51249666,105720.0,105710.0,0.0338077]
[1748563328994,0.51249666,105720.0,105710.0,0.02933156]
[1748563328995,0.54349666,105720.0,105710.0,0.02933156]
[1748563329217,0.5340379,105720.0,105710.0,0.02933156]
[1748563329457,0.53395061,105720.0,105710.0,0.02933074]
[1748563330435,0.30221342,105730.0,105720.0,0.19863772]
[1748563330436,0.02518963,105730.0,105720.0,0.19863772]
[1748563330671,0.33900723,105730.0,105720.0,0.37603396]
[1748563330905,0.34846501,105730.0,105720.0,0.34303396]
[1748563331141,0.34846501,105730.0,105720.0,0.14938351]
[1748563331142,0.5376268,105730.0,105720.0,0.14938351]
[1748563331409,0.5376268,105730.0,105720.0,0.11638351]
[1748563331674,0.5376268,105730.0,105720.0,0.11738351]
[1748563331940,0.5376268,105730.0,105720.0,0.11838351]
[1748563331941,0.5281692,105730.0,105720.0,0.11838351]
[1748563333343,0.5281692,105730.0,105720.0,0.12784245]
[1748563333587,0.5281692,105730.0,105720.0,0.11838079]
[1748563334320,0.5280892,105730.0,105720.0,0.11838079]
[1748563335213,0.5280892,105730.0,105720.0,0.11502997]
[1748563337706,0.5280892,105730.0,105720.0,0.11502995]
[1748563340914,0.03464813,105730.0,105720.0,0.51982995]
[1748563341172,0.5280092,105730.0,105720.0,0.51982995]
[1748563341358,0.5280092,105730.0,105720.0,0.14672995]
[1748563341903,0.5280092,105730.0,105720.0,0.14672991]
[1748563342348,0.03464759,105730.0,105720.0,0.36730887]
[1748563342589,0.53742662,105730.0,105720.0,0.17812991]
[1748563342823,0.52796911,105730.0,105720.0,0.14672991]
[1748563343052,0.51851133,105730.0,105720.0,0.14672991]
[1748563343307,0.51851133,105730.0,105720.0,0.11502991]
[1748563343568,0.54851133,105730.0,105720.0,0.11502991]
[1748563344058,0.54851133,105730.0,105720.0,0.11200395]
[1748563344297,0.02518963,105730.0,105720.0,0.38989112]
[1748563344520,0.32930963,105730.0,105720.0,0.38752653]
[1748563344756,0.33876714,105730.0,105720.0,0.38141797]
[1748563345006,0.35768261,105730.0,105720.0,0.1922391]
[1748563345239,0.35768261,105730.0,105720.0,0.14673013]
[1748563345240,0.52792884,105730.0,105720.0,0.14673013]
[1748563345465,0.52792884,105730.0,105720.0,0.11503013]
[1748563345945,0.54847124,105730.0,105720.0,0.02397602]
[1748563346392,0.64571124,105730.0,105720.0,0.02397602]
[1748563349369,0.64571124,105730.0,105720.0,0.02733029]
[1748563351713,0.53730725,105730.0,105720.0,0.05753029]
[1748563351945,0.24272485,105730.0,105720.0,0.05753029]
[1748563352172,0.53730725,105730.0,105720.0,0.06200178]
[1748563352875,0.52784938,105730.0,105720.0,0.06200178]
[1748563353103,0.52784938,105730.0,105720.0,0.03180178]
[1748563353378,0.51839142,105730.0,105720.0,0.03180178]
[1748563354281,0.51839142,105730.0,105720.0,0.02844758]
[1748563355206,0.21435142,105730.0,105720.0,0.02844758]
[1748563355442,0.5277692,105730.0,105720.0,0.02844758]
[1748563357312,0.02518981,105730.0,105720.0,0.64868049]
[1748563357527,0.36698075,105730.0,105720.0,0.50146047]
[1748563357754,0.3575227,105730.0,105720.0,0.70009828]
[1748563358195,0.35752261,105730.0,105720.0,0.70955704]
[1748563358422,0.32910972,105730.0,105720.0,0.7190155]
[1748563358647,0.33856732,105730.0,105720.0,0.76037391]
[1748563358875,0.33856741,105730.0,105720.0,0.7190155]
[1748563359317,0.33856732,105730.0,105720.0,0.72847391]
[1748563359548,0.33856723,105730.0,105720.0,0.7190155]
[1748563359799,0.33856714,105730.0,105720.0,0.72847391]
[1748563360469,0.34802483,105730.0,105720.0,0.70955691]
[1748563360711,0.34802483,105730.0,105720.0,0.72847408]
[1748563360940,0.34802474,105730.0,105720.0,0.72847373]
[1748563361202,0.34802474,105730.0,105720.0,0.70955664]
[1748563361424,0.34802474,105730.0,105720.0,0.71901523]
[1748563361893,0.34802474,105730.0,105720.0,0.72847373]
[1748563362596,0.34802474,105730.0,105720.0,0.71901532]
[1748563362840,0.34802474,105730.0,105720.0,0.70955673]
[1748563363068,0.34802474,105730.0,105720.0,0.71901523]
[1748563363290,0.34802474,105730.0,105720.0,0.71901532]
[1748563363517,0.34802474,105730.0,105720.0,0.72847382]
[1748563364201,0.34802474,105730.0,105720.0,0.71901532]
[1748563364455,0.34802474,105730.0,105720.0,0.72847382]
[1748563364954,0.34802474,105730.0,105720.0,0.38847294]
[1748563364955,0.32910963,105730.0,105720.0,0.38847294]
[1748563365163,0.33856714,105730.0,105720.0,0.37901462]
[1748563365625,0.34802483,105730.0,105720.0,0.36955621]
[1748563366081,0.34802483,105730.0,105720.0,0.36009771]
[1748563366523,0.33856714,105730.0,105720.0,0.36955621]
[1748563366747,0.34802483,105730.0,105720.0,0.70955621]
[1748563366991,0.02518963,105730.0,105720.0,0.36955621]
[1748563367224,0.32898954,105730.0,105720.0,0.41011453]
[1748563367956,0.32898954,105730.0,105720.0,0.75011453]
[1748563369426,0.0157323,105730.0,105720.0,0.75011453]
[1748563369639,0.3194923,105730.0,105720.0,0.74564304]
[1748563370953,0.3194923,105730.0,105720.0,0.74261699]
[1748563371167,0.3194923,105730.0,105720.0,0.74564275]
[1748563371809,0.3194523,105730.0,105720.0,0.74564275]
[1748563373189,0.3194523,105730.0,105720.0,0.74564273]
[1748563374607,0.0157323,105730.0,105720.0,0.74564273]
[1748563374814,0.3194123,105730.0,105720.0,0.74564273]
[1748563375277,0.3194123,105730.0,105720.0,0.74564272]
[1748563377037,0.0157323,105730.0,105720.0,0.74564272]
[1748563377252,0.3194123,105730.0,105720.0,0.74564272]
[1748563378070,0.0157323,105730.0,105720.0,0.74564272]
[1748563378277,0.3193723,105730.0,105720.0,0.74564272]
[1748563378696,0.3193723,105730.0,105720.0,2.09384072]
[1748563378902,0.3193723,105730.0,105720.0,1.47293972]
[1748563379514,0.0352116,105730.0,105720.0,1.47293972]
[1748563379731,0.3388516,105730.0,105720.0,1.47293972]
[1748563381090,0.0352116,105730.0,105720.0,1.47293972]
[1748563381967,0.01251965,105730.0,105720.0,1.45402219]
[1748563382440,0.01251965,105730.0,105720.0,1.45402205]
[1748563382650,0.01251965,105730.0,105720.0,1.85402205]
[1748563383076,0.34142621,105740.0,105730.0,0.60002654]
[1748563383290,0.34157401,105740.0,105730.0,0.69859881]
[1748563383742,0.31316415,105740.0,105730.0,0.70805623]
[1748563383955,0.33207739,105740.0,105730.0,0.70805632]
[1748563384170,0.32262068,105740.0,105730.0,0.70805632]
[1748563384391,0.3320773,105740.0,105730.0,0.70805632]
[1748563384817,0.3320773,105740.0,105730.0,0.69859881]
[1748563385338,0.31316415,105740.0,105730.0,0.70805623]
[1748563385560,0.32262077,105740.0,105730.0,0.69859881]
[1748563385784,0.32262077,105740.0,105730.0,0.70805632]
[1748563386011,0.32262077,105740.0,105730.0,0.68914121]
[1748563386255,0.32262077,105740.0,105730.0,0.36805668]
[1748563386475,0.33207748,105740.0,105730.0,0.35859899]
[1748563386689,0.32262077,105740.0,105730.0,0.36805668]
[1748563386923,0.33207748,105740.0,105730.0,0.36805668]
[1748563387167,0.33207748,105740.0,105730.0,0.35859899]
[1748563387401,0.33207748,105740.0,105730.0,0.11752227]
[1748563387402,0.23860502,105740.0,105730.0,0.11752227]
[1748563387653,0.57422502,105740.0,105730.0,0.12089016]
[1748563387914,0.57422502,105740.0,105730.0,0.11639743]
[1748563390093,0.57422502,105740.0,105730.0,0.02534348]
[1748563390971,0.54204502,105740.0,105730.0,0.02534348]
[1748563392095,0.57344502,105740.0,105730.0,0.02534348]
[1748563393403,0.27000502,105740.0,105730.0,0.02534348]
[1748563393616,0.57340502,105740.0,105730.0,0.02534348]
[1748563394033,0.23860502,105740.0,105730.0,0.02534348]
[1748563394254,0.54200502,105740.0,105730.0,0.02534348]
[1748563394478,0.54200502,105740.0,105730.0,0.01895]
[1748563394688,0.54200502,105740.0,105730.0,0.02534141]